Cogmind - Beta 14 @@@ ROGUE MODE // 2024.09.03 @ 14:29:08 Player: Evel Wyn Result: Destroyed by G-34 Mercenary with Small Laser Performance ------------- Evolutions (0) 0 Regions Visited (1) 200 Robots Destroyed (8) 40 Value Destroyed (260) 260 Prototype IDs (0) 0 Alien Tech Used (0) 0 Bonus (0) 0 TOTAL SCORE: 500 Bonus ------- None Cogmind --------- Core Integrity 0/250 Matter 154/300 Energy 92/100 System Corruption 0% Temperature Cool (6) Movement Core (200) Ox3 Location -10/Materials Parts ------- > --- POWER (1) -------- Light Nuclear Core > --- PROPULSION (2) --- (None) > --- UTILITY (2) ------ Small Storage Unit Terrain Scanner > --- WEAPON (2) ------- Small Laser > --- INVENTORY (8) ---- Light Ion Engine Wheel Compact Wheel Large Matter Pod (0) Terrain Scanner Terrain Scanner Light Cannon Light Cannon Peak State ------------ > --- POWER ------------ Light Nuclear Core > --- PROPULSION ------- Light Treads Light Treads > --- UTILITY ---------- Small Storage Unit Terrain Scanner > --- WEAPON ----------- Small Laser Light Cannon > --- INVENTORY -------- Light Ion Engine Aluminum Leg Aluminum Leg Wheel Compact Wheel Light Cannon Light Cannon [Rating: 9] Favorites ----------- Power Light Nuclear Core Engine Light Ion Engine Power Core Light Nuclear Core Propulsion Light Treads Treads Light Treads Leg Aluminum Leg Utility Small Storage Unit Device Terrain Scanner Storage Small Storage Unit Weapon Light Cannon Energy Gun Medium Laser Ballistic Gun Light Assault Rifle Ballistic Cannon Light Cannon Build | -11 -10 ------- Run | Yrd Mat Slots Evolved . | . . Power . | . . Propulsion . | . . Utility . | . . Weapon . | . . Parts Attached 13 | 5 8 Power 2 | 1 1 Engine 1 | 1 . Core 1 | . 1 Reactor . | . . Propulsion 4 | 1 3 Treads 2 | . 2 Leg 2 | 1 1 Wheel . | . . Hover . | . . Flight . | . . Utility 2 | 1 1 Device 1 | . 1 Storage 1 | 1 . Processor . | . . Hackware . | . . Protection . | . . Artifact . | . . Weapon 5 | 2 3 Energy Gun 2 | 1 1 Energy Cannon . | . . Ballistic Gun 1 | 1 . Ballistic Cannon 2 | . 2 Launcher . | . . Special Weapon . | . . Impact Weapon . | . . Slashing Weapon . | . . Piercing Weapon . | . . Special Melee Weapon . | . . Unidentified Prototypes . | . . Parts Lost 5 | . 5 Power 1 | . 1 Propulsion 2 | . 2 Utility . | . . Weapon 2 | . 2 Highest Loss Streak 3 | . 3 To Critical Strikes . | . . Average Slot Usage (%) 83 | . 83 Engine 2 | . 2 Core 10 | . 10 Treads 18 | . 18 Leg 4 | . 4 Device 5 | . 5 Storage 14 | . 14 Energy Gun 11 | . 11 Ballistic Gun 4 | . 4 Ballistic Cannon 11 | . 11 Peak Build Rating 9 | 5 9 Average Rating 6 | 4 7 On Entrance 2 | . 5 Naked Turns . | . . Heaviest Build 16 | 11 16 Greatest Support 40 | 10 40 Greatest Overweight (x) 4 | 2 4 Average Overweight (x) . | . . Largest Inventory Capacity 8 | 8 8 Average Capacity 7 | 7 8 Most Carried 8 | 7 8 Average Carried 7 | 5 7 Final Capacity 8 | 8 8 Final Carried 8 | 7 8 Class Distribution -------------------- 100% | Mutant Dominant Class ---------------- Mutant | -10/Materials Resources | -11 -10 ----------- Run | Yrd Mat Matter Collected 340 | 151 189 Remotely . | . . Salvage Created 230 | . 230 Parts 10 | . 10 Haulers Intercepted . | . . Recyclers Shooed . | . . Parts Field Recycled . | . . Retrieved Matter . | . . Parts Self-Destructed . | . . Prevented . | . . Kills | -11 -10 ------- Run | Yrd Mat Combat Hostiles Destroyed 8 | . 8 Guns 3 | . 3 Cannons 5 | . 5 Classes Destroyed 2 | . 2 Swarmer 2 | . 2 Grunt 6 | . 6 Best Kill Streak 2 | . 2 Combat Bots Only 2 | . 2 Max Kills in Single Turn 1 | . 1 Gunslinging . | . . Exploded . | . . Melee . | . . Uniques/NPCs Destroyed . | . . Combat | -11 -10 -------- Run | Yrd Mat Hostile Shots Fired 95 | . 95 Missed 17 | . 17 Damage Taken 1024 | . 1024 Core 256 | . 256 Absorbed by Shields . | . . Core Remaining (%) 100 | 100 . Volleys Fired 48 | . 48 Largest 2 | . 2 Hottest 85 | . 85 Shots Fired 94 | . 94 Gun 47 | . 47 Cannon 47 | . 47 Launcher . | . . Special . | . . Kinetic 60 | . 60 Thermal 34 | . 34 Explosive . | . . Electromagnetic . | . . Robot Hit Streak 11 | . 11 Robot Miss Streak 4 | . 4 Penetration Max . | . . Secondary Targets . | . . Shots Hit Robots 54 | . 54 Core Hits 17 | . 17 Critical Kills . | . . Critical Parts Destroyed . | . . Critical Strikes 1 | . 1 Burn 1 | . 1 Melee Attacks . | . . Impact . | . . Slashing . | . . Piercing . | . . Sneak Attacks . | . . Combat Hostiles . | . . Follow-up Attacks . | . . Damage Inflicted 782 | . 782 Guns 305 | . 305 Cannons 472 | . 472 Explosions . | . . Melee . | . . Ramming 5 | . 5 Kinetic 548 | . 548 Thermal 229 | . 229 Explosive . | . . Electromagnetic . | . . Impact . | . . Slashing . | . . Piercing . | . . Highest Corruption . | . . Average Corruption . | . . Corruption Purged . | . . Corruption Blocked . | . . Overload Shots . | . . Overflow Damage 21 | . 21 Projectiles 21 | . 21 Explosions . | . . Melee . | . . Knockbacks 13 | . 13 Impact . | . . Kinetic 13 | . 13 Secondary . | . . Self-Inflicted Damage 1 | . 1 Shots . | . . Rammed 2 | . 2 Targets Rammed 6 | . 6 Kicked 4 | . 4 Crushed . | . . Highest Temperature 315 | . 315 Average Temperature 93 | . 93 Received Heat Transfer 564 | . 564 Siege Activations . | . . Robots Corrupted . | . . Combat Hostiles . | . . Parts Fried . | . . Impact Corruptions . | . . Robots Melted . | . . Combat Hostiles . | . . Parts Melted 2 | . 2 Heat Transferred 717 | . 717 Parts Sabotaged . | . . Parts Stolen . | . . Parts Stripped . | . . Power Chain Reactions . | . . Alert | -11 -10 ------- Run | Yrd Mat Peak Influence 222 | . 222 Initial . | . . Average 56 | . 68 Maximum Alert Level 1 | . 1 Low Security (%) 96 | 100 95 Level 1 3 | . 4 Level 2 . | . . Level 3 . | . . Level 4 . | . . Level 5 . | . . High Security . | . . Max Security . | . . Squads Dispatched 2 | . 2 Investigation 1 | . 1 Extermination . | . . Reinforcement 1 | . 1 Assault . | . . Garrison . | . . Intercept . | . . Searches Triggered . | . . Construction Impeded . | . . Haulers Reinforced . | . . Active Scanning Responses . | . . Cargo Convoy Interrupts . | . . Stealth | -11 -10 --------- Run | Yrd Mat Distress Signals 1 | . 1 Communications Jammed . | . . Distress Signals . | . . Times Spotted 14 | . 14 Peak Tracking Total 4 | . 4 Tactical Retreats 1 | . 1 Traps | -11 -10 ------- Run | Yrd Mat Traps Triggered . | . . Indirectly . | . . Trap Hack Attempts . | . . Triggered . | . . Disarmed . | . . Reprogrammed . | . . Reused . | . . Traps Extracted . | . . Installed . | . . Triggered . | . . Machines | -11 -10 ---------- Run | Yrd Mat Machines Disabled 1 | . 1 Max in Single Turn 1 | . 1 Machines Repaired . | . . Machines Dismantled . | . . Machines Sabotaged . | . . Overloaded Fab Kills . | . . Hacking | -11 -10 --------- Run | Yrd Mat Machines Accessed 2 | . 2 Terminals 1 | . 1 Fabricators . | . . Repair Stations . | . . Recycling Units 1 | . 1 Scanalyzers . | . . Garrison Access . | . . Total Hacks 5 | . 5 Successful 4 | . 4 Failed 1 | . 1 Catastrophic . | . . Database Lockouts . | . . Manual 2 | . 2 Terminals 3 | . 3 Fabricators . | . . Repair Stations . | . . Recycling Units 2 | . 2 Scanalyzers . | . . Garrison Access . | . . Terminal Hacks 2 | . 2 Robot Analysis 1 | . 1 Maintenance Status 1 | . 1 Fabricator Hacks . | . . Repair Station Hacks . | . . Recycling Unit Hacks . | . . Scanalyzer . | . . Garrison Access Hacks . | . . Unauthorized Hacks 2 | . 2 Terminals . | . . Fabricators . | . . Repair Stations . | . . Recycling Units 2 | . 2 Mask 1 | . 1 Tunnel 1 | . 1 Scanalyzers . | . . Garrison Access . | . . Data Cores Recovered . | . . Used . | . . Hacking Detections 1 | . 1 Full Trace Events . | . . Feedback Events . | . . Feedback Blocked . | . . Robot Schematics Acquired . | . . Robots Built . | . . Authchips . | . . Time . | . . Total Robot Build Rating . | . . Part Schematics Acquired . | . . Parts Built . | . . Authchips . | . . Time . | . . Total Part Build Rating . | . . Parts Repaired . | . . Time . | . . Parts Recycled . | . . Recycled Matter . | . . Retrieved Matter . | . . Retrieved Components . | . . Parts Scanalyzed . | . . Part Schematics Acquired . | . . Parts Damaged . | . . Bothacking | -11 -10 ------------ Run | Yrd Mat Used RIF Installer . | . . Robots Hacked . | . . Non-combat . | . . Combat . | . . Robot Hacks Applied . | . . Relay Couplers Released . | . . Fabnet Peak Effective % . | . . Robots Rewired . | . . Allies Hacked . | . . Hacks Repelled . | . . Allies | -11 -10 -------- Run | Yrd Mat Total Allies . | . . Largest Group . | . . Highest-Rated Group . | . . Highest-Rated Ally . | . . Total Orders . | . . Ally Attacks . | . . Total Damage . | . . Kills . | . . Allies Corrupted . | . . Allies Melted . | . . Intel | -11 -10 ------- Run | Yrd Mat Robot Analysis Total 1 | . 1 Derelict Logs Recovered . | . . Drone Launches . | . . Drone Recoveries . | . . Exploration | -11 -10 ------------- Run | Yrd Mat Turns Passed 574 | 96 478 Spaces Moved 221 | 50 171 Core 11 | 7 4 Treads 129 | . 129 Legs 81 | 43 38 Wheels . | . . Hover . | . . Flight . | . . Fastest Speed 50 | 50 120 Average Speed 161 | 166 160 Slowest Speed 250 | 190 250 Overloaded Moves . | . . Propulsion Burnouts . | . . Robots Hopped . | . . Cave-ins Triggered . | . . Exploration Rate (%) 13 | 5 21 Regions Visited 1 Branch Regions . Pre-discovered Areas 1 | . 1 Known Exits Taken . | . . Unknown Exits Taken 1 | 1 . Scrap Searched . | . . Spaces Dug . | . . Terrain Destroyed . | . . Melee . | . . Projectile . | . . AOE . | . . Terrain Rammed . | . . Walls Destroyed . | . . Machines Disabled . | . . Actions | -11 -10 --------- Run | Yrd Mat Total 340 | 61 279 Wait 37 | . 37 Move 220 | 49 171 Hop . | . . Pick Up 13 | 7 6 Fast Attach 7 | 5 2 Attach 3 | . 3 Detach . | . . Swap 3 | . 3 Drop 3 | . 3 Fire 48 | . 48 Melee . | . . Ram 2 | . 2 Kick 4 | . 4 Crush . | . . Escape Stasis . | . . Rewire . | . . Trap . | . . Miscellaneous . | . . Route ------- -11/Scrapyard -10/Materials History --------- Turn | Location | Event 26 | -11/Scrapyard | Discovered new exit (range 15) 97 | -11/Scrapyard | Entered Materials 313 | -10/Materials | Build established: Mutant 456 | -10/Materials | Core integrity fell below 50% 557 | -10/Materials | Core integrity fell below 20% 575 | -10/Materials | Destroyed by G-34 Mercenary with Small Laser Last Messages --------------- 00538_ K-01 Serf collects debris. 00546_ K-01 Serf cleans the Electrolysis Chamber. 00546_ K-01 Serf collects debris. 00550_ K-01 Serf cleans the Electrolysis Chamber. 00551_ Electrolysis Chamber disabled. 00552_ Lgt. Treads destroyed. 00554_ K-01 Serf cleans the Terminal. 00558_ K-01 Serf collects debris. 00558_ K-01 Serf cleans the Electrolysis Chamber. 00562_ Lgt. Cannon destroyed. 00563_ K-01 Serf cleans the Terminal. 00564_ K-01 Serf collects debris. 00565_ Slammed into K-01 Serf. 00565_ Lgt. Nuclear Core broken. 00565_ Destabilizing: Short circuit. 00567_ Slammed into K-01 Serf. 00573_ K-01 Serf collects debris. Map ----- +----------------------------------------------------+ | ?????????????????????????????????????????????????? | | ?????????????????????????????????????????????????? | | ?????????????????????????????????????????????????? | | ?????????????????????????????????????????????????? | | ?????????????????????????????????????????????????? | | ?????????????????????????????????????????????????? | | ?????????????????????????????????????????????????? | | ?????????????????????????????????????????????????? | | ??????????? ?????????????????????????????????????? | | ????????? ?????????????? ??????????????????????? | | ?????????# ?????????????????????????????????????? | | ?????????# ??? ???????????#?????????????????????? | | ?????????# ??????????#?????????????????????????? | | ?????????# ?#??????????????????????????????????? | | ?????????# ???????????######???????????????????? | | ?????????# ??????????## #???????????????????? | | ?????????# #??????????# ""#???????????????????? | | ?????????# ???????? ?# Y"#???????????????????? | | ?????????# ??? ???????# ""#???????????????????? | | ????????## ##????????## # ??????????????????? | | ???# #### ########### #??? ??? ???????????? | | ???# T + #???????? ??????????? | | ???# "" % %# #?#????? ??????????? | | ???# =%# #???#??"""??????????? | | ?????# ## #########+##########? """??????????? | | ????????## ###????# T*g@g r # """ ?????????? | | ?????????# #????### =""" """ # ??????????? | | ?????????+ ??? ???# " " """ + ????????????? | | ?????????# ???????# "k" """ # ????????????? | | ?????????# ?? "???# # #???????????? | | ?????????# ??????"?# # #???????????? | | ?????????# ????????###########+## #???????????? | | ?????????# ???? ????#???????## #???????????? | | ?????????# ? #?????????####### #???????????? | | ?????????# ????????#???# + #???????????? | | ?????????# ??#??????#??# # #???????????? | | ????????? ????#???#?## / # #???????????? | | ?????????#??????????#??# # ##??????????? | | ???????????????????? ?## # ^ #??????????? | | ??????????????????? ???#! +^^ #??????????? | | ???????????????????????# # #??????????? | | ???????????????????????# = ###### #??????????? | | ???????????????????????#= #????# ######?????? | | ???????????????????????# ###### #?????? | | ???????????????????????# + #?????? | | ???????????????????????# ###### #?????? | | ????????????????? ?????#######??#####+## #?????? | | ????????????????????????????????# T # #?????? | | ????????????????????????????????# # #?????? | | ??????????????????????????#?????# """ # #?????? | +----------------------------------------------------+ Best States ------------- Heat Dissipation 25 Energy Generation 14 Energy Capacity 160 Matter Stores 262 Matter Capacity 300 Sight Range 16 Terrain Scan Range 14 Terrain Scan Density 10 Evasion (%) 50 Recoil Reduction 2 Item Schematics ----------------- None Robot Schematics ------------------ None Fabricated ------------ Nothing Alien Tech Used ----------------- None Achievements -------------- None Challenges ------------ None Game ------ Seed SystemMomentumFalx Manual? 0 Play Time 00:21:21 Cumulative 13.9 hours Start 2024.09.01 @ 00:01:51 End 2024.09.03 @ 14:29:08 Sessions 3 Manual Loads 0 Difficulty Rogue Special Mode None Game No. 14 Rogue 14 Adventurer 0 Explorer 0 Win Type - Total 0 Types 0/0/0/0/0/0/0/0/0 Lore% 13 Gallery% 16 Achievement% 16 Wizard Run 0 Options --------- Layout 1 ASCII 0 Keyboard 1 Movement Numpad Keybinds 0 Fullscreen 2 Font 48/Tamsyn Map View 50x35 Zoom Use 0% Tactical HUD 1 Map Filters NONE Filters NONE Steam 1 RUN: 3f45191f-5e08-4c0c-a455-d33f108dd69b